bitfinex-derivatives/quotes_ETHF0:USTF0_20210702
["timestamp","ask_amount","ask_price","bid_price","bid_amount"]
[1625219464214,10.44807,2042.9,2040.7,1.0]
[1625219464563,11.41637,2042.9,2040.7,1.0]
[1625219464664,55.1342,2042.4,2040.7,1.0]
[1625219464814,4.3788,2042.4,2040.7,1.0]
[1625219464965,2.20527,2042.2,2042.0,2.20527]
[1625219465065,6.96427,2042.2,2042.0,2.20527]
[1625219465413,4.759,2042.2,2042.0,2.20527]
[1625219466074,5.759,2042.8,2042.0,2.20527]
[1625219466173,4.759,2042.8,2042.0,2.20527]
[1625219466974,2.20527,2042.5,2042.4,2.20527]
[1625219467577,4.759,2042.8,2042.4,2.20527]
[1625219467678,4.759,2042.8,2042.4,5.82107]
[1625219468079,60.7806,2043.5,2042.4,5.82107]
[1625219468431,64.50060383,2043.5,2042.4,5.82107]
[1625219468643,3.72023371,2043.4,2042.4,5.82107]
[1625219469030,61.96977,2042.7,2042.4,5.82107]
[1625219469981,66.72877,2042.7,2042.4,5.82107]
[1625219470081,66.72877,2042.7,2042.4,2.20527]
[1625219470982,2.20527,2042.5,2042.4,2.20527]
[1625219472435,4.759,2042.7,2042.4,2.20527]
[1625219472636,1.0,2043.4,2042.4,2.20527]
[1625219472737,64.49891381,2043.5,2042.4,2.20527]
[1625219472985,4.41054,2042.5,2042.4,2.20527]
[1625219475206,4.41054,2042.5,2042.4,1.0474139]
[1625219481327,4.41054,2042.5,2041.4,1.0]
[1625219481425,4.41054,2042.5,2041.1,14.9769]
[1625219481580,10.41054,2042.5,2041.1,14.9769]
[1625219481879,5.41054,2042.5,2041.1,14.9769]
[1625219482027,5.41054,2042.5,2041.1,72.996]
[1625219482227,5.41054,2042.5,2041.1,14.9769]
[1625219482677,10.41054,2042.5,2041.1,14.9769]
[1625219482778,20.71364,2042.5,2041.1,14.9769]
[1625219482878,19.71364,2042.5,2041.1,14.9769]
[1625219483080,2.20527,2041.5,2041.4,2.20527]
[1625219483982,1.0,2042.5,2041.4,2.20527]
[1625219484080,16.5328,2042.9,2041.4,5.02507]
[1625219484181,15.4328,2042.9,2041.4,5.02507]
[1625219484430,8.0,2042.8,2041.4,5.02507]
[1625219484530,5.0,2042.7,2041.6,57.8258]
[1625219484631,15.4328,2042.9,2041.6,57.8258]
[1625219484883,3.71613163,2043.1,2041.6,57.8258]
[1625219485087,4.41054,2041.7,2041.6,57.8258]
[1625219485386,4.41054,2041.7,2041.4,5.02507]
[1625219485787,0.9743,2042.3,2041.4,5.02507]
[1625219486091,15.4827,2042.9,2041.4,66.25287]
[1625219487090,2.20527,2041.9,2041.8,2.20527]
[1625219490571,4.58627,2041.9,2041.8,2.20527]
[1625219490771,4.58627,2041.9,2041.4,2.20527]
[1625219491178,2.20527,2041.5,2041.4,2.20527]
[1625219495785,2.20527,2041.9,2041.4,2.20527]
[1625219495887,2.20527,2041.9,2041.4,4.69877]
[1625219496988,2.20527,2041.9,2041.4,2.20527]
[1625219497136,6.96427,2041.9,2041.7,2.20527]
[1625219497891,54.4366,2041.8,2041.7,2.20527]
[1625219497988,57.2225,2041.8,2041.7,2.20527]
[1625219498139,57.2225,2041.8,2041.4,2.20527]
[1625219499240,2.20527,2041.5,2041.4,2.20527]
[1625219502697,5.28747,2041.5,2041.4,2.20527]
[1625219505410,5.28747,2041.5,2041.1,2.20527]
[1625219505514,5.28747,2041.5,2041.1,1.48767]
[1625219506012,60.2524,2041.2,2041.1,1.48767]
[1625219506117,60.2524,2041.2,2039.9,1.0]
[1625219506214,60.2524,2041.2,2039.8,15.5936]
[1625219506917,1.0,2041.4,2039.8,15.5936]
[1625219507017,5.28747,2041.5,2039.8,15.5936]
[1625219507118,6.28747,2041.5,2039.8,15.5936]
[1625219507220,2.20527,2040.5,2040.4,2.20527]
[1625219508285,1.0,2041.4,2040.4,2.20527]
[1625219508390,3.0822,2041.5,2040.4,2.20527]
[1625219508485,33.5646,2041.9,2040.4,2.20527]
[1625219508888,53.778,2041.2,2040.4,2.20527]
[1625219508985,56.1947,2041.2,2040.4,2.20527]
[1625219509192,2.20527,2040.5,2040.4,2.20527]
[1625219513560,1.0,2041.6,2040.4,2.20527]
[1625219513661,20.5646,2041.9,2040.4,5.47877]
[1625219515270,2.20527,2041.1,2040.9,2.20527]
[1625219515419,2.20527,2041.1,2040.9,5.53887]
[1625219516772,2.20527,2041.1,2040.9,3.3336]
[1625219516870,2.20527,2041.1,2040.4,2.20527]
[1625219517221,2.20527,2041.1,2041.0,2.20527]
[1625219517473,2.20527,2041.1,2040.5,3.1797]
[1625219519327,2.20527,2041.1,2041.0,2.20527]
[1625219519426,4.759,2041.3,2041.0,4.86347]
[1625219521280,4.41054,2041.1,2041.0,4.86347]
[1625219523237,7.93764,2041.1,2041.0,2.20527]
[1625219524387,4.41054,2041.1,2041.0,2.20527]
[1625219528297,4.41054,2041.1,2040.4,2.20527]
[1625219529350,2.20527,2040.5,2040.4,2.20527]
[1625219531203,2.20527,2041.1,2040.4,2.20527]
[1625219531453,4.41054,2041.1,2040.4,2.20527]
[1625219533320,2.20527,2041.1,2040.7,2.20527]
[1625219535331,2.20527,2040.8,2040.7,2.20527]
[1625219540991,2.20527,2040.8,2040.4,2.20527]
[1625219541390,2.20527,2040.5,2040.4,2.20527]
[1625219544599,5.759,2041.3,2040.4,2.20527]
[1625219544701,4.759,2041.3,2040.4,4.65877]
[1625219545052,3.74334511,2041.6,2040.4,4.65877]
[1625219545151,3.74334511,2041.6,2041.5,53.486]
[1625219545299,3.74334511,2041.6,2041.5,56.7541]
[1625219545407,6.96427,2041.8,2041.5,61.16464]
[1625219545751,4.759,2041.8,2041.5,61.16464]
[1625219548260,4.759,2041.8,2041.5,7.67864]
[1625219549104,4.759,2041.8,2041.5,56.60364]
[1625219549307,4.759,2041.8,2041.5,7.67864]
[1625219551510,4.759,2041.8,2041.5,4.41054]
[1625219555488,2.20527,2041.7,2041.5,4.41054]
[1625219557542,4.759,2041.8,2041.5,4.41054]
[1625219557641,4.759,2041.8,2041.5,6.93194]
[1625219564024,4.759,2041.8,2041.5,4.72667]
[1625219564124,8.3012,2041.8,2041.5,2.5214]
[1625219564223,8.3012,2041.8,2040.4,1.0]
[1625219564374,8.3012,2041.8,2040.0,3.68620357]
[1625219564473,9.3012,2041.8,2040.0,3.68620357]
[1625219564573,49.6667,2041.3,2039.8,19.28250231]
[1625219564673,3.7515,2041.3,2039.8,19.28250231]
[1625219565181,55.4112,2041.3,2040.0,2.83800661]
[1625219565582,2.20527,2041.2,2041.1,2.20527]
[1625219567093,2.883684,2041.4,2041.1,2.20527]
[1625219567498,2.88418134,2041.5,2041.1,2.20527]
[1625219567599,2.88418134,2041.5,2041.4,2.20527]
[1625219569199,5.95489969,2041.6,2041.4,2.20527]
[1625219569704,3.75011473,2041.5,2041.4,2.20527]
[1625219570206,5.95535801,2041.6,2041.4,2.20527]
[1625219571857,49.48965801,2041.6,2041.4,2.20527]
[1625219572310,45.73957,2041.6,2041.4,2.20527]
[1625219572857,49.48997527,2041.6,2041.4,2.20527]
[1625219573007,5.95567527,2041.6,2041.4,2.20527]
[1625219573108,3.75059247,2041.5,2041.4,2.20527]
[1625219573461,5.95581856,2041.6,2041.4,2.20527]
[1625219574161,3.75054856,2041.6,2041.4,2.20527]
[1625219577026,2.88518879,2041.5,2041.4,2.20527]
[1625219577428,3.75079523,2041.6,2041.4,2.20527]
[1625219577626,2.20527,2041.5,2041.4,2.20527]
[1625219579538,5.09064829,2041.5,2041.4,2.20527]
[1625219580539,2.88537829,2041.5,2041.4,2.20527]
[1625219581693,5.09064829,2041.5,2041.4,2.20527]
[1625219582696,2.20527,2041.5,2041.4,2.20527]
[1625219584346,5.09085,2041.5,2041.4,2.20527]
[1625219584748,2.20527,2041.5,2041.4,2.20527]
[1625219592867,2.20527,2041.5,2041.4,54.46337]
[1625219592972,2.20527,2041.5,2041.4,2.20527]
[1625219594774,3.75132412,2041.6,2041.4,2.20527]
[1625219594974,2.88585313,2041.5,2041.4,2.20527]
[1625219595375,3.75169891,2041.6,2041.4,2.20527]
[1625219597186,2.88577996,2041.5,2041.4,2.20527]
[1625219597742,2.20527,2041.5,2041.4,2.20527]
[1625219598042,3.75179062,2041.6,2041.4,2.20527]
[1625219598494,2.88591779,2041.5,2041.4,2.20527]
[1625219599293,3.75169313,2041.7,2041.4,2.20527]
[1625219599294,3.75174836,2041.6,2041.4,2.20527]
[1625219599796,3.75174836,2041.6,2041.5,2.20527]
[1625219600499,54.39374836,2041.6,2041.5,2.20527]
[1625219600702,3.75174836,2041.6,2041.5,2.20527]
[1625219601203,11.58180644,2041.8,2041.5,2.20527]
[1625219601653,4.61854987,2041.7,2041.5,2.20527]
[1625219601754,8.32744987,2041.7,2041.5,2.20527]
[1625219602453,67.40424987,2041.7,2041.5,2.20527]
[1625219602553,8.32744987,2041.7,2041.5,2.20527]
[1625219603004,69.09434987,2041.7,2041.5,2.20527]
[1625219603104,8.32744987,2041.7,2041.5,2.20527]
[1625219603505,3.75265696,2041.6,2041.5,2.20527]
[1625219604255,3.7089,2041.7,2041.5,2.20527]
[1625219604256,8.32796181,2041.7,2041.5,2.20527]
[1625219604757,54.58466181,2041.7,2041.5,2.20527]
[1625219605158,54.58466181,2041.7,2040.5,97.0519]
[1625219605258,54.58466181,2041.7,2040.5,96.0519]
[1625219605657,2.88707471,2041.3,2040.5,96.0519]
[1625219605760,2.20527,2041.2,2041.0,2.20527]
[1625219605860,5.17227,2041.2,2041.0,2.20527]
[1625219610068,2.967,2041.2,2041.0,2.20527]
[1625219610170,2.88707471,2041.3,2041.0,2.20527]
[1625219611872,2.88707471,2041.3,2041.2,2.20527]
[1625219612629,2.88707471,2041.3,2041.2,56.36107]
[1625219612729,2.88707471,2041.3,2041.2,2.20527]
[1625219615290,53.7631168,2041.3,2041.2,2.20527]
[1625219615939,55.9683868,2041.3,2041.2,2.20527]
[1625219616392,55.9683868,2041.3,2040.2,1.0]
[1625219616492,55.9683868,2041.3,2040.1,2.8547144]
[1625219616493,2.88812957,2041.1,2040.0,2.85528091]
[1625219616594,6.62342957,2041.1,2040.0,2.85528091]
[1625219617147,2.88821642,2041.0,2040.0,2.85528091]
[1625219617498,7.61162095,2041.1,2040.0,2.85528091]
[1625219617596,6.62352095,2041.1,2040.0,2.85528091]
[1625219617797,2.88825267,2041.0,2040.0,2.85528091]
[1625219617946,2.88825267,2041.0,2040.8,2.20527]
[1625219618351,2.88825267,2041.0,2040.6,2.20527]
[1625219618448,60.653,2040.7,2040.6,2.20527]
[1625219618548,2.88825267,2041.0,2040.6,2.20527]
[1625219618549,3.86805267,2041.0,2040.6,2.20527]
[1625219619898,2.20527,2040.7,2040.6,2.20527]
[1625219621451,2.88853897,2041.0,2040.6,2.20527]
[1625219621903,5.09380897,2041.0,2040.6,4.41054]
[1625219622404,52.8869,2040.9,2040.6,4.41054]
[1625219622555,2.9075,2040.9,2040.6,4.41054]
[1625219625173,4.92956152,2040.9,2040.6,4.41054]
[1625219627379,2.02211266,2040.8,2040.6,4.41054]
[1625219627946,2.20527,2040.7,2040.6,4.41054]
[1625219632598,63.48757,2040.7,2040.6,4.41054]
[1625219632698,2.20527,2040.7,2040.6,4.41054]
[1625219636960,2.20527,2040.7,2040.6,46.50644]
[1625219637064,2.20527,2040.7,2040.6,4.41054]
[1625219638568,2.20527,2040.7,2040.6,53.45584]
[1625219638667,2.20527,2040.7,2040.6,4.41054]
[1625219639468,2.02211266,2040.8,2040.6,4.41054]
[1625219639570,2.02211266,2040.8,2040.6,7.42734]
[1625219639969,2.02232472,2040.9,2040.6,7.42734]
[1625219640069,2.02232472,2040.9,2040.7,57.2514]
[1625219643478,2.02232472,2040.9,2040.6,4.41054]
[1625219644132,2.02232472,2040.9,2040.6,61.94154]
[1625219645585,2.02232472,2040.9,2040.6,4.41054]
[1625219646899,2.02232472,2040.9,2040.6,52.19324]
[1625219647001,2.02232472,2040.9,2040.6,4.41054]
[1625219648451,2.02232472,2040.9,2040.8,51.1117]
[1625219650556,2.02232472,2040.9,2040.6,69.47814]
[1625219650805,2.02232472,2040.9,2040.6,4.41054]
[1625219651310,2.02232472,2040.9,2040.8,56.1938]
[1625219653364,2.02232472,2040.9,2040.6,4.41054]
[1625219655018,4.82702472,2040.9,2040.6,4.41054]
[1625219655419,2.02309987,2040.8,2040.6,4.41054]
[1625219655974,2.02309987,2040.8,2040.7,61.6546]
[1625219656072,2.02309987,2040.8,2040.6,4.41054]
[1625219656172,4.71849987,2040.8,2040.6,4.41054]
[1625219656321,2.6954,2040.8,2040.6,4.41054]
[1625219656573,2.6954,2040.8,2040.7,61.6636]
[1625219656775,4.7184814,2040.8,2040.6,4.41054]
[1625219657174,2.6954,2040.8,2040.6,4.41054]
[1625219657271,2.6954,2040.8,2040.7,55.87]
[1625219657372,2.6954,2040.8,2040.6,4.41054]
[1625219658026,2.6954,2040.8,2040.7,41.25]
[1625219658930,2.6954,2040.8,2040.6,4.41054]
[1625219659082,4.71852232,2040.8,2040.6,4.41054]
[1625219659938,4.71852232,2040.8,2040.1,1.99534178]
[1625219660038,2.89045954,2040.7,2039.9,1.99647911]
[1625219660136,2.20527,2040.2,2040.1,2.20527]
[1625219660286,4.58947,2040.2,2040.1,2.20527]
[1625219660486,2.3842,2040.2,2040.1,2.20527]
[1625219661390,4.40726013,2040.2,2040.1,2.20527]
[1625219661842,5.27436591,2040.2,2040.1,2.20527]
[1625219662047,61.16766591,2040.2,2040.1,2.20527]
[1625219662693,60.29966079,2040.2,2040.1,2.20527]
[1625219663144,60.29966079,2040.2,2040.1,0.65227]
[1625219663545,61.16628351,2040.2,2040.1,0.65227]
[1625219664055,62.0331808,2040.2,2040.1,0.65227]
[1625219664158,64.2384508,2040.2,2040.1,0.65227]
[1625219664508,63.36981535,2040.2,2040.1,0.65227]
[1625219665315,60.48277,2040.2,2040.1,0.65227]
[1625219665912,63.36981353,2040.2,2040.1,0.65227]
[1625219666365,60.48277,2040.2,2040.1,0.65227]
[1625219666717,63.36844164,2040.2,2040.1,0.65227]
[1625219667516,7.47514164,2040.2,2040.1,0.65227]
[1625219668468,6.60870805,2040.2,2040.1,0.65227]
[1625219668968,7.47403943,2040.2,2040.1,0.65227]
[1625219669887,68.41603943,2040.2,2040.1,0.65227]
[1625219670236,68.41603943,2040.2,2039.9,2.20527]
[1625219670687,67.54994749,2040.2,2039.9,2.20527]
[1625219671139,2.01849519,2040.1,2039.2,4.26]
[1625219671489,8.0,2040.0,2039.2,2.788]
[1625219671589,5.0,2039.9,2039.2,2.788]
[1625219671739,13.0,2039.9,2039.2,2.788]
[1625219671840,2.01849519,2040.1,2039.2,2.788]
[1625219672041,2.01883494,2039.8,2039.2,2.788]
[1625219672289,2.20527,2039.6,2039.5,2.20527]
[1625219672390,4.76087,2039.6,2039.5,2.20527]
[1625219672692,50.86537,2039.6,2039.5,2.20527]
[1625219672843,50.86537,2039.6,2039.5,1.00697]
[1625219674047,4.76087,2039.6,2039.5,1.00697]
[1625219674246,6.96614,2039.6,2039.5,1.00697]
[1625219674599,53.29664,2039.6,2039.5,1.00697]
[1625219674698,6.96614,2039.6,2039.5,1.00697]
[1625219676717,56.27524,2039.6,2039.5,1.00697]
[1625219676817,6.96614,2039.6,2039.5,1.00697]
[1625219677570,56.27524,2039.6,2039.5,1.00697]
[1625219677720,6.96614,2039.6,2039.5,1.00697]
[1625219678973,67.18514,2039.6,2039.5,1.00697]
[1625219679071,6.96614,2039.6,2039.5,1.00697]
[1625219680526,58.75924,2039.6,2039.5,1.00697]
[1625219681329,58.75924,2039.6,2039.3,2.20527]
[1625219681433,63.75924,2039.6,2039.2,2.788]
[1625219681589,71.75924,2039.6,2039.0,0.253]
[1625219681832,71.75924,2039.6,2038.8,3.1721]
[1625219682181,71.75924,2039.6,2038.8,3.0167]
[1625219682282,4.41054,2038.9,2038.8,3.0167]
[1625219682432,7.32884,2038.9,2038.8,3.0167]
[1625219682684,7.32884,2038.9,2038.8,1.8037]
[1625219688999,12.32884,2038.9,2038.6,2.542]
[1625219689097,8.0,2038.8,2038.6,1.564]
[1625219689200,13.0,2038.8,2038.6,1.564]
[1625219689298,13.0,2038.8,2038.6,0.0001]
[1625219689448,13.0,2038.8,2038.4,4.26]
[1625219690298,2.20527,2038.5,2038.4,4.26]
[1625219690498,7.20527,2038.5,2038.4,4.26]
[1625219690903,2.20527,2038.5,2038.4,4.26]
[1625219691401,3.18627,2038.5,2038.4,4.26]
[1625219693674,3.18627,2038.5,2038.4,3.29]
[1625219694280,3.18627,2038.5,2038.4,2.305]
[1625219694526,8.18627,2038.5,2038.4,2.305]
[1625219695077,8.18627,2038.5,2038.4,2.2183]
[1625219695280,16.18627,2038.5,2038.4,1.5699]
[1625219695377,16.18627,2038.5,2038.4,0.4289]
[1625219695479,16.18627,2038.5,2038.4,0.1036]
[1625219696381,16.18627,2038.5,2038.2,2.8086]
[1625219697287,16.18627,2038.5,2038.2,1.285]
[1625219697386,16.18627,2038.5,2038.0,1.9234]
[1625219697488,16.18627,2038.5,2038.0,1.8234]
[1625219697586,51.9049,2038.3,2038.0,1.8234]
[1625219697736,54.7613,2038.3,2038.0,1.8234]
[1625219697837,62.7613,2038.3,2038.0,1.8234]
[1625219697986,2.8564,2038.3,2038.0,1.8234]
[1625219698337,2.20527,2038.1,2038.0,1.8234]
[1625219700191,45.76487,2038.1,2038.0,1.8234]
[1625219700292,2.20527,2038.1,2038.0,1.8234]
[1625219701348,2.20527,2038.1,2038.0,51.0604]
[1625219701902,2.20527,2038.1,2038.0,1.8234]
[1625219702351,2.20527,2038.1,2038.0,4.02867]
[1625219702856,2.20527,2038.1,2038.0,1.8234]
[1625219705365,2.20527,2038.1,2038.0,52.7883]
[1625219705514,2.20527,2038.1,2038.0,1.8234]
[1625219705663,5.58537,2038.1,2038.0,1.8234]
[1625219705764,5.58537,2038.1,2038.0,1.0276]
[1625219708370,5.58537,2038.1,2038.0,0.0506]
[1625219708572,5.58537,2038.1,2037.8,3.3206]
[1625219708670,5.58537,2038.1,2037.8,3.0906]
[1625219709072,18.58537,2038.1,2037.8,1.6906]
[1625219709378,18.58537,2038.1,2037.8,1.3686]
[1625219709481,18.58537,2038.1,2037.8,0.7076]
[1625219710185,18.58537,2038.1,2037.6,6.46527]
[1625219710435,2.20527,2037.7,2037.6,6.46527]
[1625219711087,56.01097,2037.7,2037.6,6.46527]
[1625219711594,57.00377,2037.7,2037.6,6.46527]
[1625219712845,57.00377,2037.7,2037.6,5.38177]
[1625219713048,3.19807,2037.7,2037.6,5.38177]
[1625219713503,3.19807,2037.7,2037.6,3.1765]
[1625219713951,58.20127,2037.7,2037.6,3.1765]
[1625219714955,3.19807,2037.7,2037.6,3.1765]
[1625219717265,3.19807,2037.7,2037.6,2.8765]
[1625219717515,3.19807,2037.7,2037.6,2.7895]
[1625219717769,48.93127,2037.7,2037.6,2.7895]
[1625219717969,48.93127,2037.7,2037.6,1.8188]
[1625219718070,48.93127,2037.7,2037.6,0.0189]
[1625219718222,61.93127,2037.7,2037.4,0.0549]
[1625219718321,61.93127,2037.7,2037.2,3.5549]
[1625219718529,2.20527,2037.3,2037.2,3.5549]
[1625219718623,4.58087,2037.3,2037.2,3.5549]
[1625219719524,4.58087,2037.3,2037.2,2.5679]
[1625219719676,5.56297,2037.3,2037.2,2.5679]
[1625219720126,5.56297,2037.3,2037.2,2.2023]
[1625219721137,5.56297,2037.3,2037.2,1.3553]
[1625219721439,5.56297,2037.3,2037.2,1.2113]
[1625219728512,5.56297,2037.3,2037.2,0.2263]
[1625219730241,55.69007,2037.3,2037.2,0.2263]
[1625219731090,5.56297,2037.3,2037.2,0.2263]
[1625219732859,63.48957,2037.3,2037.2,0.2263]
[1625219734010,5.56297,2037.3,2037.2,0.2263]
[1625219734162,2.20527,2037.3,2037.2,0.2263]
[1625219734862,2.20527,2037.3,2037.2,60.699]
[1625219735362,2.20527,2037.3,2037.2,0.2263]
[1625219735562,3.18227,2037.3,2037.2,0.2263]
[1625219735865,2.20527,2037.3,2037.2,0.2263]
[1625219737117,4.89397,2037.3,2037.2,0.2263]
[1625219737467,5.88557,2037.3,2037.2,0.2263]
[1625219737568,4.89397,2037.3,2037.2,0.2263]
[1625219738522,5.87137,2037.3,2037.2,0.2263]
[1625219740024,4.89397,2037.3,2037.2,0.2263]
[1625219740127,2.20527,2037.3,2037.2,0.2263]
[1625219740626,2.20527,2037.3,2037.2,47.7532]
[1625219740727,2.20527,2037.3,2037.2,51.3123]
[1625219740827,2.20527,2037.3,2037.2,3.7854]
[1625219742277,2.20527,2037.3,2037.2,0.2263]
[1625219743232,3.17717,2037.3,2037.2,0.2263]
[1625219743985,11.17717,2037.3,2037.2,0.2263]
[1625219744081,11.17717,2037.3,2037.2,0.1398]
[1625219744447,3.17717,2037.3,2037.2,0.1398]
[1625219746000,11.17717,2037.3,2037.2,0.1398]
[1625219748310,3.17717,2037.3,2037.0,1.9538]
[1625219748508,8.0,2037.2,2037.0,1.9538]
[1625219748709,2.20527,2037.1,2037.0,1.9538]
[1625219748808,2.20527,2037.1,2037.0,1.396]
[1625219748908,48.57747,2037.1,2037.0,1.396]
[1625219752514,2.20527,2037.1,2037.0,1.396]
[1625219755824,6.00787,2037.1,2037.0,1.396]
[1625219760981,2.20527,2037.1,2037.0,1.396]
[1625219761434,7e-05,2037.1,2037.0,1.396]
[1625219761533,2.20527,2037.3,2037.0,57.9028]
[1625219761632,1.43424389,2038.1,2037.0,57.9028]
[1625219761784,16.983953,2038.3,2037.0,57.9028]
[1625219762032,1.434153,2038.3,2037.0,57.9028]
[1625219762234,9.43405332,2038.5,2037.0,57.9028]
[1625219762336,10.43405332,2038.5,2037.0,57.9028]
[1625219762785,2.20527,2037.6,2037.4,2.20527]
[1625219762884,5.68557,2037.6,2037.4,2.20527]
[1625219764087,1.0,2038.4,2037.4,2.20527]
[1625219764188,1.43405332,2038.5,2037.4,4.82077]
[1625219764689,0.9733,2039.0,2037.4,4.82077]
[1625219764690,1.43504185,2038.9,2037.4,4.82077]
[1625219764789,1.43504185,2038.9,2038.8,2.20527]
[1625219765091,4.61351902,2039.0,2038.8,5.16967]
[1625219765602,2.20527,2039.0,2038.8,5.16967]
[1625219768257,2.87120431,2039.4,2038.8,5.16967]
[1625219768461,1.43641723,2039.1,2038.8,5.16967]
[1625219768759,7.63125725,2039.8,2038.8,5.16967]
[1625219768860,7.63125725,2039.8,2039.0,2.20527]
[1625219769064,2.87225725,2039.8,2039.1,55.3646]
[1625219769262,2.87208812,2039.9,2039.1,55.3646]
[1625219769614,2.87208812,2039.9,2039.0,2.20527]
[1625219770517,2.87208812,2039.9,2039.4,46.875]
[1625219770815,2.87208812,2039.9,2039.8,4.41054]
[1625219771419,2.87303199,2040.0,2039.8,4.41054]
[1625219775541,2.8718496,2040.1,2039.8,4.41054]
[1625219775840,2.87186319,2040.0,2039.8,4.41054]
[1625219779263,10.87186319,2040.0,2039.8,4.41054]
[1625219779365,11.7345085,2040.0,2038.8,1.0]
[1625219779463,16.7345085,2040.0,2038.5,15.6898]
[1625219779564,9.0,2039.9,2038.5,15.6898]
[1625219779669,2.87279508,2039.7,2038.5,15.6898]
[1625219779814,3.86389508,2039.7,2038.5,15.6898]
[1625219780168,48.0298,2039.2,2038.5,15.6898]
[1625219780268,50.6631,2039.2,2038.5,15.6898]
[1625219780817,2.6333,2039.2,2038.5,15.6898]
[1625219780922,2.6333,2039.2,2039.1,4.41054]
[1625219782375,2.20527,2039.4,2039.1,4.41054]
[1625219783334,2.20527,2039.4,2039.1,8.00084]
[1625219783625,2.87219992,2039.6,2039.1,8.00084]
[1625219783727,2.87128916,2039.9,2039.1,8.00084]
[1625219784883,2.87118116,2040.0,2039.1,8.00084]
[1625219784980,2.87118116,2040.0,2039.9,4.41054]
[1625219787883,2.86942309,2040.1,2039.9,4.41054]
[1625219793765,5.07286691,2040.2,2039.9,4.41054]
[1625219794468,5.07286691,2040.2,2039.9,3.25148706]
[1625219797127,2.20527,2040.2,2039.9,3.25148706]
[1625219799634,4.80367,2040.2,2039.9,3.25148706]
[1625219800434,57.1033,2040.0,2039.9,3.25148706]
[1625219801135,59.30857,2040.0,2039.9,3.25148706]
[1625219801738,2.20527,2040.0,2039.9,3.25148706]
[1625219803595,2.20527,2040.0,2039.9,3.15948706]
[1625219804398,2.20527,2040.0,2039.9,2.65248706]
[1625219804802,2.20527,2040.0,2039.9,2.25948706]
[1625219805100,2.20527,2040.0,2039.9,2.00948706]
[1625219805403,2.20527,2040.0,2039.9,1.94448706]
[1625219805501,2.20527,2040.0,2039.9,1.75948706]
[1625219805651,2.20527,2040.0,2039.9,1.28048706]
[1625219807666,2.20527,2040.0,2039.6,2.20527]
[1625219809173,2.20527,2039.7,2039.6,2.20527]
[1625219809271,3.19437,2039.7,2039.6,2.20527]
[1625219810124,2.20527,2039.7,2039.6,2.20527]
[1625219819293,2.20527,2039.7,2039.6,60.64727]
[1625219819411,2.20527,2039.7,2039.6,2.20527]
[1625219819919,2.20527,2039.7,2039.6,45.25707]
[1625219820064,2.20527,2039.7,2039.6,2.20527]
[1625219823177,47.70647,2039.7,2039.6,2.20527]
[1625219823373,2.20527,2039.7,2039.6,2.20527]
[1625219823824,47.70647,2039.7,2039.6,2.20527]
[1625219824227,2.20527,2039.7,2039.6,2.20527]
[1625219825775,59.87817,2039.7,2039.6,2.20527]
[1625219825877,62.68227,2039.7,2039.6,2.20527]
[1625219826625,5.00937,2039.7,2039.6,2.20527]
[1625219830891,53.50607,2039.7,2039.6,2.20527]
[1625219830995,5.00937,2039.7,2039.6,2.20527]
[1625219831592,53.51077,2039.7,2039.6,2.20527]
[1625219832144,53.51077,2039.7,2039.6,2.14837]
[1625219832346,5.00937,2039.7,2039.6,2.14837]
[1625219833397,53.16517,2039.7,2039.6,2.14837]
[1625219833500,5.00937,2039.7,2039.6,2.14837]
[1625219834653,64.71407,2039.7,2039.6,2.14837]
[1625219834753,5.00937,2039.7,2039.6,2.14837]
[1625219836456,2.20527,2039.7,2039.6,2.14837]
[1625219837709,2.20527,2039.7,2039.6,5.85877]
[1625219837856,6.96427,2040.0,2039.6,5.85877]
[1625219838457,6.96427,2040.0,2039.9,49.8454]
[1625219838809,6.96427,2040.0,2039.6,5.85877]
[1625219839460,6.96427,2040.0,2039.9,2.20527]
[1625219840575,6.96427,2040.0,2039.9,63.87337]
[1625219841427,6.96427,2040.0,2039.9,2.20527]
[1625219844734,6.96427,2040.0,2039.9,52.06257]
[1625219845337,6.96427,2040.0,2039.9,2.20527]
[1625219846392,6.96427,2040.0,2039.9,4.91107]
[1625219846491,4.759,2040.0,2039.9,4.91107]
[1625219846893,0.0001,2040.0,2039.9,4.91107]
[1625219846995,2.20527,2040.2,2039.9,4.91107]
[1625219847443,2.20527,2040.2,2040.1,2.20527]
[1625219847545,2.87829257,2040.3,2040.1,53.42047]
[1625219847643,8.50078034,2040.5,2040.1,53.42047]
[1625219847744,3.7413022,2040.6,2040.1,53.42047]
[1625219847949,2.2e-06,2040.6,2040.1,53.42047]
[1625219848045,6.986,2041.1,2040.1,53.42047]
[1625219848244,4.60385786,2041.2,2040.1,53.42047]
[1625219848744,9.36285786,2041.2,2040.9,41.7382]
[1625219848897,4.759,2041.2,2040.9,44.4717]
[1625219849446,4.759,2041.2,2041.1,3.72311756]
[1625219850807,4.61084382,2041.5,2041.1,3.72311756]
[1625219851054,6.81585653,2041.6,2041.1,3.72311756]
[1625219851407,4.61058653,2041.6,2041.1,3.72311756]
[1625219851508,4.61058653,2041.6,2041.5,53.84937]
[1625219851612,4.61058653,2041.6,2041.5,57.59767]
[1625219851712,4.60592374,2041.8,2041.5,57.59767]
[1625219851810,4.60592374,2041.8,2041.5,5.95357]
[1625219851909,4.60573977,2042.0,2041.5,5.95357]
[1625219852708,4.60569597,2041.9,2041.5,5.95357]
[1625219853324,4.60162786,2042.1,2041.5,5.95357]
[1625219853426,5.59412786,2042.1,2041.5,2.20527]
[1625219853575,5.59412786,2042.1,2042.0,4.41054]